[Event "44th Chess Olympiad Open 2022"]
[Site "Chennai"]
[Date "2022.08.02"]
[Round "5.82"]
[White "Marie, Patrick"]
[Black "Elvis Havyarimana"]
[Result "0-1"]
[ECO "E01"]
[WhiteElo "1921"]
[BlackElo "1724"]
[Annotator "TA"]
[PlyCount "126"]
[EventDate "2022.07.29"]
[EventType "team-tourn"]
[EventCountry "IND"]
[SourceTitle "playchess.com"]
[Source "ChessBase"]
[SourceQuality "1"]
[WhiteTeam "Mauritius"]
[BlackTeam "BDI"]
[WhiteTeamCountry "MRI"]
[TimeControl "40/5400+30:1800+30"]

{[%evp 9,126,2,34,-7,27,17,9,0,12,-6,0,-17,0,0,0,-45,-27,-54,-16,-115,-78,-93,-89,-98,-70,-104,-33,-26,-22,-39,43,-384,-382,-373,-297,-290,-284,-284,-284,-447,-373,-384,-352,-428,-333,-366,-366,-366,-365,-365,-358,-365,-365,-365,-365,-358,-336,-322,-322,-398,-381,-500,-487,-462,-381,-543,-497,-479,-450,-708,-696,-12845,-12847,-12846,-12850,-29940,-29942,-29938,-29941,-29941,-29943,-29944,-29946,-29943,-29937,-29936,-29938,-29936,-12849,-29948,-29945,-29943,-29943,-29951,-29940,-11800,-7480,-29961,-29957,-29967,-29970,-29970,-29971,-29980,-29981,-29981,-29981,-29981,-29981,-29981,-29980,-29981,-29982,-29985,-29986,-29986,-29987,-29989,-29989]} 1. d4 {[%emt 0:00:03]} e6 {[%emt 0:00:02]} 2. c4 {[%emt 0:00:06]} d5 {[%emt 0:00:05]} 3. Nf3 {[%emt 0:00:09]} Nf6 {[%emt 0:01:17]} 4. g3 {[%emt 0:00:17]} dxc4 {[%emt 0:00:25]} 5. Qa4+ {[%emt 0:00:17]} Nc6 {[%emt 0:00:07]} 6. Qxc4 {[%emt 0:00:13] E01: Catalan: Early deviations.} Bd6 {[%emt 0:00:34]} 7. Bg2 {[%emt 0:00:30]} O-O {[%emt 0:00:26]} 8. Bg5 {[%emt 0:01:46] [#] The position is equal.} h6 $146 {[%emt 0:00:15]} ({Predecessor:} 8... e5 9. dxe5 Nxe5 10. Nxe5 Bxe5 11. Nc3 c6 12. O-O Be6 13. Qc5 Bd4 14. Qa3 Qb6 {0-1 (25) Kopylov,L (2156)-Kosteniuk,A (2530) Germany 2015}) 9. Bd2 {[%emt 0:00:13]} Re8 {[%emt 0:00:40]} 10. Nc3 {[%emt 0:05:36]} a6 {[%emt 0:00:22]} 11. O-O {[%emt 0:01:36]} e5 {[%emt 0:05:48]} 12. d5 {[%emt 0:04:26]} Ne7 {[%emt 0:06:18]} 13. e4 {[%emt 0:04:43]} c6 {[%emt 0:03:33]} (13... b5 $5 {[%cal Rb5c4]} 14. Qd3 b4 $15) 14. Rfd1 {[%emt 0:04:57]} (14. dxc6 $11 Be6 15. Qe2) 14... cxd5 {[%emt 0:02:38]} 15. Nxd5 {[%emt 0:00:35]} Nexd5 {[%emt 0:01:47]} 16. exd5 {[%emt 0:02:09]} Bg4 {[%emt 0:02:52] [#] Strongly threatening ...e4.} 17. Re1 {[%emt 0:06:29]} Qd7 {[%emt 0:03:59]} (17... Rc8 $17 18. Qb3 e4) 18. Bc3 $1 $15 {[%emt 0:11:48][%cal Rf3e5]} Rac8 $36 {[%emt 0:03:47][%mdl 2048] Black is pushing.} 19. Qb3 {[%emt 0:01:51][%cal Rf3e5]} e4 {[%emt 0:15:36]} (19... Bxf3 $15 20. Bxf3 Qf5) 20. Bxf6 $4 {[%emt 0:00:46][%mdl 8192] Now White is beyond hope.} (20. Nd2 $14 {was forced to keep a grip.}) 20... exf3 $19 {[%emt 0:01:18]} ({Weaker is} 20... gxf6 21. Nd2 $11) 21. Bxf3 {[%emt 0:01:14]} Bxf3 {[%emt 0:02:43]} 22. Qxf3 {[%emt 0:00:02]} gxf6 {[%emt 0:00:15]} 23. Qxf6 {[%emt 0:00:01]} Bf8 {[%emt 0:01:23]} 24. Red1 {[%emt 0:00:16]} (24. Rxe8 {is a better defense.} Rxe8 25. Qf3) 24... Bg7 {[%emt 0:01:30]} 25. Qf4 {[%emt 0:00:20]} Rc5 {[%emt 0:03:05]} 26. Qf3 {[%emt 0:01:29]} Rd8 {[%emt 0:02:14][%cal Rc5d5]} 27. Rac1 {[%emt 0:01:23]} Rxd5 {[%emt 0:03:16]} 28. Rxd5 {[%emt 0:00:14]} Qxd5 {[%emt 0:00:12]} 29. Qxd5 {[%emt 0:00:01]} Rxd5 {[%emt 0:00:15][%mdl 4096] Endgame KRB-KR} 30. Rc8+ {[%emt 0:00:04]} Bf8 {[%emt 0:00:41]} ({But not} 30... Kh7 $2 31. Rc2 $19) 31. Rc7 {[%emt 0:00:42]} b6 {[%emt 0:00:33]} 32. Rc2 {[%emt 0:03:01]} Bc5 {[%emt 0:02:45]} 33. Kg2 {[%emt 0:00:21]} Kg7 {[%emt 0:01:08]} 34. g4 {[%emt 0:00:45]} h5 {[%emt 0:01:32]} 35. h3 {[%emt 0:00:23]} hxg4 {[%emt 0:00:09]} 36. hxg4 {[%emt 0:00:13]} f5 {[%emt 0:01:00]} 37. f3 {[%emt 0:00:22]} (37. gxf5 $142 Kf6 38. Kf3) 37... fxg4 {[%emt 0:00:13]} 38. fxg4 {[%emt 0:00:02]} Rd3 {[%emt 0:00:32]} 39. a3 {[%emt 0:05:12]} (39. Kf1 $142) 39... a5 {[%emt 0:00:25]} 40. b4 {[%emt 0:00:32]} axb4 {[%emt 0:00:23]} 41. axb4 {[%emt 0:30:01]} Bxb4 {[%emt 0:30:23]} 42. Rc7+ {[%emt 0:00:29]} Kg6 {[%emt 0:00:38]} 43. Rc6+ {[%emt 0:00:02]} Rd6 {[%emt 0:00:15]} 44. Rc8 {[%emt 0:01:31]} Kg5 {[%emt 0:00:57]} 45. Kf3 {[%emt 0:01:14]} Rf6+ {[%emt 0:02:33]} 46. Ke4 {[%emt 0:01:54]} Kxg4 {[%emt 0:00:31]} 47. Rg8+ {[%emt 0:00:20]} Kh5 {[%emt 0:00:02]} 48. Kd5 {[%emt 0:01:22]} Bc5 {[%emt 0:00:07] [#] ( -> ...Rf5+)} 49. Kc4 {[%emt 0:00:20]} Rg6 {[%emt 0:00:24]} 50. Re8 {[%emt 0:00:30]} Kg5 {[%emt 0:00:11]} 51. Kb5 {[%emt 0:00:15]} Kf5 {[%emt 0:00:05]} 52. Re1 {[%emt 0:00:47]} Re6 {[%emt 0:00:06]} 53. Rf1+ {[%emt 0:00:13]} Ke5 {[%emt 0:00:01] Black mates.} 54. Re1+ {[%emt 0:00:01]} Kd6 {[%emt 0:01:43]} 55. Rd1+ {[%emt 0:00:21]} Kc7 {[%emt 0:00:08]} 56. Kc4 {[%emt 0:10:49]} Kc6 {[%emt 0:00:21]} 57. Kb3 {[%emt 0:00:13]} Re4 {[%emt 0:00:14]} 58. Rh1 {[%emt 0:00:51]} Re3+ {[%emt 0:00:59]} 59. Kc2 {[%emt 0:00:14]} Kd5 {[%emt 0:00:11]} 60. Rh4 {[%emt 0:00:55]} Bd4 {[%emt 0:00:33]} 61. Rh5+ {[%emt 0:08:03]} Kc4 {[%emt 0:00:42]} 62. Rh1 {[%emt 0:01:02]} Re2+ {[%emt 0:00:12]} 63. Kb1 {[%emt 0:00:25]} b5 {[%emt 0:01:37] Weighted Error Value: White=0.81/Black=0.24 (precise)} 0-1